fUST/lending_fUST_20250625
["ID","MTS","AMOUNT","RATE_DAILY","PERIOD"]
[367460970,1750805450143,-300.595242,0.00016986,2]
[367460971,1750805450152,-537.54,0.00016986,2]
[367460974,1750805450161,-460.0,0.00016986,2]
[367460975,1750805450170,-1055.46,0.00016986,2]
[367460978,1750805450180,-1320.72,0.00016986,2]
[367460980,1750805450189,-460.0,0.00016986,2]
[367460981,1750805450198,-330.0,0.00016986,2]
[367460984,1750805450207,-460.0,0.00016986,2]
[367460985,1750805450216,-460.0,0.00016986,2]
[367460987,1750805450225,-460.0,0.00016986,2]
[367460989,1750805450234,-1377.63,0.00016986,2]
[367460991,1750805450243,-460.0,0.00016986,2]
[367460993,1750805450252,-460.0,0.00016986,2]
[367460995,1750805450262,-460.0,0.00016986,2]
[367460997,1750805450271,-460.0,0.00016986,2]
[367460999,1750805450280,-460.0,0.00016986,2]
[367461001,1750805450290,-500.0,0.00016991,2]
[367461004,1750805450299,-500.0,0.00016991,2]
[367461006,1750805450308,-500.0,0.00017021,2]
[367461007,1750805450317,-1000.0,0.00017021,2]
[367461009,1750805450326,-1000.0,0.00017021,2]
[367461011,1750805450335,-509.22323429,0.00017021,2]
[367461014,1750805450344,-500.0,0.00017021,2]
[367461015,1750805450353,-460.0,0.00017021,2]
[367461017,1750805450362,-460.0,0.00017021,2]
[367461019,1750805450371,-460.0,0.00017021,2]
[367461021,1750805450380,-460.0,0.00017021,2]
[367461024,1750805450389,-460.0,0.00017021,2]
[367461025,1750805450398,-460.0,0.00017021,2]
[367461028,1750805450408,-460.0,0.00017021,2]
[367461029,1750805450417,-460.0,0.00017021,2]
[367461032,1750805450427,-460.0,0.00017021,2]
[367461033,1750805450436,-291.53699681,0.00017021,2]
[367461035,1750805450445,-151.0,0.00017196,2]
[367461038,1750805450454,-151.0,0.00017196,2]
[367461040,1750805450463,-151.0,0.00017196,2]
[367461042,1750805450473,-151.0,0.00017196,2]
[367461044,1750805450482,-995.917908,0.00017196,2]
[367461046,1750805450491,-995.917908,0.00017196,2]
[367461048,1750805450500,-170.435313,0.00017196,2]
[367461049,1750805450509,-170.435313,0.00017196,2]
[367461052,1750805450519,-151.0,0.00017196,2]
[367461054,1750805450529,-388.561723,0.00017196,2]
[367461056,1750805450538,-388.561723,0.00017196,2]
[367461058,1750805450547,-154.283077,0.00017196,2]
[367461060,1750805450557,-151.0,0.00017196,2]
[367461062,1750805450566,-260.39746,0.00017196,2]
[367461063,1750805450575,-1151.4,0.00017196,2]
[367461066,1750805450585,-178.520182,0.00017196,2]
[367461068,1750805450594,-178.520182,0.00017196,2]
[367461070,1750805450603,-374.446491,0.00017196,2]
[367461072,1750805450612,-374.446491,0.00017196,2]
[367461074,1750805450621,-160.0,0.00017196,2]
[367461076,1750805450630,-230.20892031,0.00017196,2]
[367461078,1750805450639,-160.0,0.00017196,2]
[367461080,1750805450650,-160.0,0.00017196,2]
[367461082,1750805450659,-836.80226758,0.00017196,2]
[367461084,1750805450668,-213.66798275,0.00017196,2]
[367461086,1750805450676,-846.68469334,0.00017196,2]
[367461088,1750805450686,-160.0,0.00017196,2]
[367461090,1750805450695,-425.14181427,0.00017196,2]
[367461092,1750805450704,-160.0,0.00017196,2]
[367461094,1750805450713,-160.0,0.00017196,2]
[367461096,1750805450722,-160.0,0.00017196,2]
[367461098,1750805450731,-12556.00642039,0.00017196,2]
[367461100,1750805450740,-288.0,0.00017245,2]
[367461102,1750805450750,-168.0,0.00017256,2]
[367461104,1750805450762,-647.38,0.00017259,2]
[367461106,1750805450771,-647.38,0.00017259,2]
[367461108,1750805450780,-1151.4,0.00017259,2]
[367461110,1750805450790,-500.0,0.00017259,2]
[367461112,1750805450799,-500.0,0.00017259,2]
[367461114,1750805450810,-167.17166159,0.00017259,2]
[367461116,1750805450820,-292.07427984,0.0001726,2]
[367461118,1750805450829,-399.54463347,0.0001726,2]
[367461120,1750805450838,-460.0,0.0001726,2]
[367461122,1750805450848,-460.0,0.0001726,2]
[367461124,1750805450857,-460.0,0.0001726,2]
[367461126,1750805450866,-519.44794217,0.0001726,2]
[367461128,1750805450875,-460.0,0.0001726,2]
[367461130,1750805450884,-151.0,0.0001726,2]
[367461132,1750805450893,-151.0,0.0001726,2]
[367461134,1750805450902,-460.0,0.0001726,2]
[367461136,1750805450911,-460.0,0.0001726,2]
[367461138,1750805450921,-460.0,0.0001726,2]
[367461140,1750805450930,-432.43,0.0001726,2]
[367461142,1750805450939,-460.0,0.0001726,2]
[367461144,1750805450948,-460.0,0.0001726,2]
[367461146,1750805450957,-460.0,0.0001726,2]
[367461148,1750805450966,-460.0,0.0001726,2]
[367461150,1750805450978,-460.0,0.0001726,2]
[367461152,1750805450987,-460.0,0.0001726,2]
[367461154,1750805450996,-460.0,0.0001726,2]
[367461156,1750805451006,-460.0,0.0001726,2]
[367461158,1750805451015,-452.80176838,0.0001726,2]
[367461160,1750805451024,-460.0,0.0001726,2]
[367461162,1750805451033,-460.0,0.0001726,2]
[367461164,1750805451042,-460.0,0.0001726,2]
[367461166,1750805451051,-577.52,0.0001726,2]
[367461182,1750805451175,-151.0,0.0001726,2]
[367461184,1750805451196,-460.0,0.0001726,2]
[367461186,1750805451206,-460.0,0.0001726,2]
[367461188,1750805451215,-460.0,0.0001726,2]
[367461190,1750805451224,-151.0,0.0001726,2]
[367461192,1750805451233,-460.0,0.0001726,2]
[367461194,1750805451242,-460.0,0.0001726,2]
[367461196,1750805451251,-460.0,0.0001726,2]
[367461198,1750805451259,-460.0,0.0001726,2]
[367461200,1750805451269,-460.0,0.0001726,2]
[367461202,1750805451278,-460.0,0.0001726,2]
[367461204,1750805451287,-594.28,0.0001726,2]
[367461206,1750805451296,-460.0,0.0001726,2]
[367461208,1750805451305,-460.0,0.0001726,2]
[367461210,1750805451314,-460.0,0.0001726,2]
[367461213,1750805451323,-460.0,0.0001726,2]
[367461215,1750805451332,-799.75,0.0001726,2]
[367461217,1750805451341,-460.0,0.0001726,2]
[367461219,1750805451350,-460.0,0.0001726,2]
[367461221,1750805451360,-155.371939,0.0001726,2]
[367461223,1750805451369,-155.371939,0.0001726,2]
[367461225,1750805451378,-460.0,0.0001726,2]
[367461227,1750805451387,-690.76,0.0001726,2]
[367461229,1750805451398,-460.0,0.0001726,2]
[367461231,1750805451407,-460.0,0.0001726,2]
[367461233,1750805451416,-460.0,0.0001726,2]
[367461235,1750805451426,-316.8,0.0001726,2]
[367461237,1750805451435,-460.0,0.0001726,2]
[367461239,1750805451444,-460.0,0.0001726,2]
[367461241,1750805451453,-1192.0,0.0001726,2]
[367461243,1750805451462,-460.0,0.0001726,2]
[367461245,1750805451471,-151.0,0.0001726,2]
[367461247,1750805451481,-788.69,0.0001726,2]
[367461249,1750805451490,-460.0,0.0001726,2]
[367461251,1750805451499,-1264.22,0.0001726,2]
[367461253,1750805451508,-460.0,0.0001726,2]
[367461255,1750805451517,-460.0,0.0001726,2]
[367461257,1750805451527,-460.0,0.0001726,2]
[367461259,1750805451536,-477.27,0.0001726,2]
[367461261,1750805451545,-460.0,0.0001726,2]
[367461263,1750805451556,-178.520182,0.0001726,2]
[367461265,1750805451566,-460.0,0.0001726,2]
[367461267,1750805451575,-178.520182,0.0001726,2]
[367461269,1750805451584,-1272.14,0.0001726,2]
[367461271,1750805451594,-460.0,0.0001726,2]
[367461273,1750805451603,-460.0,0.0001726,2]
[367461275,1750805451612,-460.0,0.0001726,2]
[367461277,1750805451622,-460.0,0.0001726,2]
[367461279,1750805451631,-821.77,0.0001726,2]
[367461281,1750805451640,-460.0,0.0001726,2]
[367461283,1750805451650,-151.0,0.0001726,2]
[367461285,1750805451659,-494.29,0.0001726,2]
[367461287,1750805451669,-460.0,0.0001726,2]
[367461289,1750805451678,-460.0,0.0001726,2]
[367461291,1750805451689,-259.43,0.0001726,2]
[367461293,1750805451698,-460.0,0.0001726,2]
[367461295,1750805451708,-460.0,0.0001726,2]
[367461297,1750805451718,-460.0,0.0001726,2]
[367461300,1750805451728,-1159.92,0.0001726,2]
[367461302,1750805451737,-460.0,0.0001726,2]
[367461304,1750805451746,-500.0,0.0001726,2]
[367461306,1750805451756,-460.0,0.0001726,2]
[367461307,1750805451768,-460.0,0.0001726,2]
[367461309,1750805451778,-460.0,0.0001726,2]
[367461311,1750805451788,-695.91,0.0001726,2]
[367461314,1750805451797,-343.938768,0.0001726,2]
[367461316,1750805451808,-346.120825,0.0001726,2]
[367461317,1750805451818,-343.938768,0.0001726,2]
[367461320,1750805451829,-346.120825,0.0001726,2]
[367461321,1750805451839,-460.0,0.0001726,2]
[367461323,1750805451848,-1860.5,0.0001726,2]
[367461325,1750805451857,-460.0,0.0001726,2]
[367461327,1750805451866,-460.0,0.0001726,2]
[367461329,1750805451875,-173.498796,0.0001726,2]
[367461331,1750805451884,-460.0,0.0001726,2]
[367461333,1750805451894,-460.0,0.0001726,2]
[367461335,1750805451903,-460.0,0.0001726,2]
[367461337,1750805451913,-529.33,0.0001726,2]
[367461339,1750805451922,-173.498796,0.0001726,2]
[367461341,1750805451931,-537.54,0.0001726,2]
[367461343,1750805451940,-460.0,0.0001726,2]
[367461345,1750805451949,-1055.46,0.0001726,2]
[367461347,1750805451959,-1320.72,0.0001726,2]
[367461349,1750805451969,-460.0,0.0001726,2]
[367461351,1750805451978,-460.0,0.0001726,2]
[367461353,1750805451988,-1377.63,0.0001726,2]
[367461355,1750805451998,-460.0,0.0001726,2]
[367461357,1750805452008,-460.0,0.0001726,2]
[367461359,1750805452017,-460.0,0.0001726,2]
[367461361,1750805452027,-460.0,0.0001726,2]
[367461363,1750805452037,-460.0,0.0001726,2]
[367461365,1750805452046,-597.25,0.0001726,2]
[367461367,1750805452055,-151.0,0.00017293,2]
[367461369,1750805452064,-168.0,0.00017303,2]
[367461371,1750805452074,-642.0,0.00017347,2]
[367461373,1750805452083,-647.38,0.00017397,2]
[367461375,1750805452093,-647.38,0.00017397,2]
[367461377,1750805452102,-647.38,0.00017397,2]
[367461379,1750805452111,-647.38,0.00017397,2]
[367461381,1750805452120,-647.42,0.00017397,2]
[367461383,1750805452129,-151.0,0.00017398,2]
[367461385,1750805452138,-151.0,0.00017398,2]
[367461386,1750805452147,-301.293437,0.00017398,2]
[367461389,1750805452157,-301.293437,0.00017398,2]
[367461391,1750805452166,-282.56866,0.00017398,2]
[367461393,1750805452175,-282.56866,0.00017398,2]
[367461394,1750805452184,-642.0,0.00017398,2]
[367461396,1750805452193,-337.0,0.00017409,2]
[367461398,1750805452202,-642.0,0.00017426,2]
[367461400,1750805452211,-642.0,0.00017449,2]
[367461402,1750805452221,-153.0,0.00017462,2]
[367461404,1750805452230,-642.0,0.00017475,2]
[367461406,1750805452239,-642.0,0.00017479,2]
[367461408,1750805452249,-428.52617537,0.00017484,2]
[367461410,1750805452259,-1055.03592152,0.00017484,2]
[367461412,1750805452268,-500.0,0.00017484,2]
[367461414,1750805452277,-642.0,0.00017493,2]
[367461416,1750805452286,-500.0,0.00017514,2]
[367461418,1750805452295,-1151.4,0.00017532,2]
[367461420,1750805452305,-151.0,0.00017534,2]
[367461423,1750805452324,-151.0,0.00017534,2]
[367461425,1750805452334,-219.431033,0.00017534,2]
[367461427,1750805452343,-219.431033,0.00017534,2]
[367461429,1750805452352,-151.0,0.00017534,2]
[367461431,1750805452362,-460.0,0.00017534,2]
[367461433,1750805452372,-170.435313,0.00017534,2]
[367461435,1750805452381,-170.435313,0.00017534,2]
[367461437,1750805452391,-460.0,0.00017534,2]
[367461439,1750805452400,-151.0,0.00017534,2]
[367461441,1750805452410,-460.0,0.00017534,2]
[367461443,1750805452419,-460.0,0.00017534,2]
[367461445,1750805452429,-551.45,0.00017534,2]
[367461447,1750805452438,-151.0,0.00017534,2]
[367461449,1750805452448,-388.561723,0.00017534,2]
[367461451,1750805452457,-388.561723,0.00017534,2]
[367461453,1750805452466,-460.0,0.00017534,2]
[367461455,1750805452476,-350.455524,0.00017534,2]
[367461457,1750805452485,-460.0,0.00017534,2]
[367461459,1750805452494,-350.455524,0.00017534,2]
[367461461,1750805452504,-460.0,0.00017534,2]
[367461463,1750805452514,-151.0,0.00017534,2]
[367461465,1750805452523,-460.0,0.00017534,2]
[367461467,1750805452532,-151.0,0.00017534,2]
[367461469,1750805452542,-151.0,0.00017534,2]
[367461471,1750805452552,-460.0,0.00017534,2]
[367461473,1750805452561,-460.0,0.00017534,2]
[367461475,1750805452571,-151.0,0.00017534,2]
[367461477,1750805452580,-151.0,0.00017534,2]
[367461479,1750805452590,-151.0,0.00017534,2]
[367461481,1750805452599,-505.75,0.00017534,2]
[367461483,1750805452609,-248.744204,0.00017534,2]
[367461485,1750805452619,-460.0,0.00017534,2]
[367461487,1750805452628,-248.744204,0.00017534,2]
[367461489,1750805452637,-460.0,0.00017534,2]
[367461491,1750805452647,-151.0,0.00017534,2]
[367461493,1750805452656,-460.0,0.00017534,2]
[367461495,1750805452665,-460.0,0.00017534,2]
[367461497,1750805452675,-460.0,0.00017534,2]
[367461499,1750805452684,-799.75,0.00017534,2]
[367461501,1750805452693,-460.0,0.00017534,2]
[367461503,1750805452702,-460.0,0.00017534,2]
[367461505,1750805452712,-155.371939,0.00017534,2]
[367461507,1750805452721,-155.371939,0.00017534,2]
[367461509,1750805452731,-460.0,0.00017534,2]
[367461511,1750805452741,-690.76,0.00017534,2]
[367461513,1750805452751,-460.0,0.00017534,2]
[367461515,1750805452763,-444.64,0.00017534,2]
[367461517,1750805452773,-151.0,0.00017534,2]
[367461519,1750805452782,-460.0,0.00017534,2]
[367461521,1750805452791,-460.0,0.00017534,2]
[367461523,1750805452802,-460.0,0.00017534,2]
[367461525,1750805452812,-1192.0,0.00017534,2]
[367461527,1750805452821,-308.374376,0.00017534,2]
[367461529,1750805452831,-151.0,0.00017534,2]
[367461531,1750805452840,-460.0,0.00017534,2]
[367461533,1750805452850,-287.422844,0.00017534,2]
[367461535,1750805452859,-788.69,0.00017534,2]
[367461537,1750805452868,-308.374376,0.00017534,2]
[367461539,1750805452878,-460.0,0.00017534,2]
[367461541,1750805452887,-1264.22,0.00017534,2]
[367461543,1750805452897,-460.0,0.00017534,2]
[367461545,1750805452906,-460.0,0.00017534,2]
[367461547,1750805452915,-460.0,0.00017534,2]
[367461549,1750805452925,-477.27,0.00017534,2]
[367461551,1750805452936,-178.520182,0.00017534,2]
[367461553,1750805452945,-409.09,0.00017534,2]
[367461555,1750805452955,-178.520182,0.00017534,2]
[367461557,1750805452964,-1272.14,0.00017534,2]
[367461559,1750805452973,-599.35065997,0.00017534,2]
[367461561,1750805452983,-374.446491,0.00017534,2]
[367461563,1750805452992,-374.446491,0.00017534,2]
[367461565,1750805453002,-460.0,0.00017534,2]
[367461567,1750805453011,-460.0,0.00017534,2]
[367461569,1750805453021,-435.73,0.00017534,2]
[367461571,1750805453030,-821.77,0.00017534,2]
[367461573,1750805453040,-460.0,0.00017534,2]
[367461575,1750805453050,-151.0,0.00017534,2]
[367461577,1750805453059,-460.0,0.00017534,2]
[367461579,1750805453068,-460.0,0.00017534,2]
[367461581,1750805453078,-460.0,0.00017534,2]
[367461583,1750805453087,-460.0,0.00017534,2]
[367461585,1750805453096,-1159.92,0.00017534,2]
[367461587,1750805453105,-500.0,0.00017534,2]
[367461589,1750805453115,-460.0,0.00017534,2]
[367461591,1750805453124,-460.0,0.00017534,2]
[367461593,1750805453134,-460.0,0.00017534,2]
[367461595,1750805453143,-695.91,0.00017534,2]
[367461597,1750805453152,-343.938768,0.00017534,2]
[367461599,1750805453162,-346.120825,0.00017534,2]
[367461601,1750805453171,-343.938768,0.00017534,2]
[367461603,1750805453181,-346.120825,0.00017534,2]
[367461605,1750805453190,-576.2,0.00017534,2]
[367461607,1750805453199,-1860.5,0.00017534,2]
[367461609,1750805453208,-460.0,0.00017534,2]
[367461611,1750805453218,-173.498796,0.00017534,2]
[367461613,1750805453227,-460.0,0.00017534,2]
[367461615,1750805453236,-460.0,0.00017534,2]
[367461617,1750805453245,-460.0,0.00017534,2]
[367461618,1750805453255,-529.33,0.00017534,2]
[367461620,1750805453264,-173.498796,0.00017534,2]
[367461622,1750805453273,-537.54,0.00017534,2]
[367461624,1750805453282,-460.0,0.00017534,2]
[367461626,1750805453292,-1320.72,0.00017534,2]
[367461628,1750805453301,-1055.46,0.00017534,2]
[367461630,1750805453311,-460.0,0.00017534,2]
[367461632,1750805453320,-460.0,0.00017534,2]
[367461634,1750805453330,-1377.63,0.00017534,2]
[367461636,1750805453340,-460.0,0.00017534,2]
[367461638,1750805453349,-460.0,0.00017534,2]
[367461640,1750805453359,-262.78,0.00017534,2]
[367461642,1750805453368,-460.0,0.00017534,2]
[367461644,1750805453377,-642.0,0.00017564,2]
[367461647,1750805453390,-1000.0,0.00017568,2]
[367461649,1750805453399,-168.0,0.00017752,2]
[367461651,1750805453409,-642.0,0.00017755,2]
[367461653,1750805453418,-539.44,0.00017798,3]
[367461655,1750805453427,-4482.44,0.00017798,3]
[367461657,1750805453436,-2241.22,0.00017798,3]
[367461659,1750805453446,-1120.62,0.00017798,3]
[367461661,1750805453455,-560.3,0.00017798,3]
[367461663,1750805453464,-213.66798275,0.00017798,3]
[367461665,1750805453473,-1151.4,0.00017807,2]
[367461667,1750805453482,-151.0,0.00017808,2]
[367461668,1750805453492,-151.0,0.00017808,2]
[367461670,1750805453501,-151.0,0.00017808,2]
[367461672,1750805453511,-151.0,0.00017808,2]
[367461674,1750805453520,-151.0,0.00017808,2]
[367461676,1750805453530,-460.0,0.00017808,2]
[367461678,1750805453539,-995.917908,0.00017808,2]
[367461680,1750805453549,-995.917908,0.00017808,2]
[367461682,1750805453559,-460.0,0.00017808,2]
[367461684,1750805453568,-460.0,0.00017808,2]
[367461703,1750805453730,-460.0,0.00017808,2]
[367461704,1750805453740,-460.0,0.00017808,2]
[367461706,1750805453751,-454.69,0.00017808,2]
[367461708,1750805453766,-460.0,0.00017808,2]
[367461710,1750805453776,-215.592634,0.00017808,2]
[367461712,1750805453785,-460.0,0.00017808,2]
[367461714,1750805453794,-380.0,0.00017808,2]
[367461716,1750805453804,-460.0,0.00017808,2]
[367461718,1750805453814,-413.39,0.00017808,2]
[367461720,1750805453823,-460.0,0.00017808,2]
[367461722,1750805453832,-799.75,0.00017808,2]
[367461724,1750805453842,-690.76,0.00017808,2]
[367461726,1750805453853,-255.09400532,0.00017808,2]
[367461728,1750805453863,-524.09,0.00017808,2]
[367461730,1750805453872,-1192.0,0.00017808,2]
[367461732,1750805453882,-788.69,0.00017808,2]
[367461734,1750805453891,-209.46,0.00017808,2]
[367461736,1750805453900,-1264.22,0.00017808,2]
[367461738,1750805453909,-316.57,0.00017808,2]
[367461740,1750805453919,-460.0,0.00017808,2]
[367461742,1750805453928,-477.27,0.00017808,2]
[367461744,1750805453938,-1272.14,0.00017808,2]
[367461746,1750805453947,-460.0,0.00017808,2]
[367461748,1750805453957,-460.0,0.00017808,2]
[367461750,1750805453966,-821.77,0.00017808,2]
[367461752,1750805453976,-460.0,0.00017808,2]
[367461754,1750805453986,-151.0,0.00017808,2]
[367461756,1750805453994,-460.0,0.00017808,2]
[367461758,1750805454004,-460.0,0.00017808,2]
[367461760,1750805454014,-460.0,0.00017808,2]
[367461761,1750805454023,-1159.92,0.00017808,2]
[367461763,1750805454031,-460.0,0.00017808,2]
[367461765,1750805454041,-460.0,0.00017808,2]
[367461766,1750805454050,-460.0,0.00017808,2]
[367461767,1750805454059,-695.91,0.00017808,2]
[367461768,1750805454068,-343.938768,0.00017808,2]
[367461769,1750805454077,-346.120825,0.00017808,2]
[367461770,1750805454086,-343.938768,0.00017808,2]
[367461771,1750805454095,-346.120825,0.00017808,2]
[367461772,1750805454105,-1860.5,0.00017808,2]
[367461773,1750805454114,-460.0,0.00017808,2]
[367461774,1750805454123,-173.498796,0.00017808,2]
[367461775,1750805454132,-282.07,0.00017808,2]
[367461776,1750805454141,-460.0,0.00017808,2]
[367461777,1750805454150,-529.33,0.00017808,2]
[367461778,1750805454159,-173.498796,0.00017808,2]
[367461779,1750805454169,-537.54,0.00017808,2]
[367461780,1750805454178,-1320.72,0.00017808,2]
[367461781,1750805454188,-1055.46,0.00017808,2]
[367461782,1750805454197,-460.0,0.00017808,2]
[367461783,1750805454207,-493.46,0.00017808,2]
[367461784,1750805454216,-1377.63,0.00017808,2]
[367461785,1750805454225,-460.0,0.00017808,2]
[367461786,1750805454235,-460.0,0.00017808,2]
[367461787,1750805454243,-460.0,0.00017808,2]
[367461788,1750805454253,-642.0,0.00017828,2]
[367461789,1750805454262,-642.0,0.00017848,2]
[367461790,1750805454271,-642.0,0.00017863,2]
[367461791,1750805454280,-642.0,0.0001789,2]
[367461793,1750805454290,-420.0,0.00017952,2]
[367461794,1750805454299,-420.0,0.00017962,2]
[367461796,1750805454309,-1680.0,0.00018042,2]
[367461798,1750805454319,-151.0,0.00018053,2]
[367461800,1750805454328,-207.4,0.00018053,2]
[367461802,1750805454337,-151.0,0.00018053,2]
[367461804,1750805454347,-151.0,0.00018053,2]
[367461806,1750805454356,-500.0,0.00018053,2]
[367461808,1750805454365,-286.95631685,0.00018053,2]
[367461810,1750805454374,-500.0,0.00018053,2]
[367461812,1750805454383,-500.0,0.00018053,2]
[367461813,1750805454392,-500.0,0.00018053,2]
[367461815,1750805454401,-500.0,0.00018053,2]
[367461817,1750805454411,-500.0,0.00018053,2]
[367461819,1750805454420,-151.0,0.00018053,2]
[367461821,1750805454429,-500.0,0.00018053,2]
[367461823,1750805454439,-151.0,0.00018053,2]
[367461825,1750805454447,-500.0,0.00018053,2]
[367461827,1750805454457,-500.0,0.00018053,2]
[367461829,1750805454466,-151.0,0.00018053,2]
[367461831,1750805454475,-500.0,0.00018053,2]
[367461833,1750805454485,-500.0,0.00018053,2]
[367461835,1750805454494,-500.0,0.00018053,2]
[367461837,1750805454503,-151.0,0.00018053,2]
[367461839,1750805454511,-500.0,0.00018053,2]
[367461841,1750805454520,-500.0,0.00018053,2]
[367461843,1750805454529,-151.0,0.00018053,2]
[367461845,1750805454538,-500.0,0.00018053,2]
[367461847,1750805454547,-500.0,0.00018053,2]
[367461849,1750805454557,-284.18889448,0.00018053,2]
[367461851,1750805454566,-500.0,0.00018053,2]
[367461853,1750805454575,-500.0,0.00018053,2]
[367461855,1750805454585,-500.0,0.00018053,2]
[367461857,1750805454595,-500.0,0.00018053,2]
[367461859,1750805454604,-500.0,0.00018053,2]
[367461861,1750805454614,-500.0,0.00018053,2]
[367461863,1750805454623,-500.0,0.00018053,2]
[367461865,1750805454632,-500.0,0.00018053,2]
[367461867,1750805454641,-500.0,0.00018053,2]
[367461869,1750805454650,-500.0,0.00018053,2]
[367461871,1750805454659,-500.0,0.00018053,2]
[367461873,1750805454668,-500.0,0.00018053,2]
[367461875,1750805454677,-5000.0,0.00018053,2]
[367461877,1750805454687,-500.0,0.00018053,2]
[367461879,1750805454696,-500.0,0.00018053,2]
[367461881,1750805454706,-500.0,0.00018053,2]
[367461883,1750805454715,-500.0,0.00018053,2]
[367461885,1750805454724,-25000.0,0.00018053,2]
[367461887,1750805454734,-500.0,0.00018053,2]
[367461889,1750805454743,-500.0,0.00018053,2]
[367461891,1750805454752,-500.0,0.00018053,2]
[367461893,1750805454765,-500.0,0.00018053,2]
[367461895,1750805454775,-24734.42845236,0.00018053,2]
[367461896,1750805454784,-151.0,0.00018053,2]
[367461898,1750805454794,-151.0,0.00018053,2]
[367461900,1750805454805,-225.46018012,0.00018053,2]
[367461903,1750805454814,-175.469612,0.00018053,2]
[367461904,1750805454823,-350.455524,0.00018053,2]
[367461907,1750805454834,-350.455524,0.00018053,2]
[367461908,1750805454843,-151.0,0.00018053,2]
[367461910,1750805454853,-151.0,0.00018053,2]
[367461913,1750805454862,-151.0,0.00018053,2]
[367461914,1750805454871,-248.744204,0.00018053,2]
[367461916,1750805454881,-248.744204,0.00018053,2]
[367461918,1750805454890,-151.0,0.00018053,2]
[367461921,1750805454901,-308.374376,0.00018053,2]
[367461923,1750805454910,-151.0,0.00018053,2]
[367461924,1750805454920,-308.374376,0.00018053,2]
[367461926,1750805454930,-374.446491,0.00018053,2]
[367461928,1750805454939,-374.446491,0.00018053,2]
[367461930,1750805454948,-1151.4,0.00018081,2]
[367461932,1750805454958,-151.0,0.00018082,2]
[367461934,1750805454968,-151.0,0.00018082,2]
[367461936,1750805454977,-151.0,0.00018082,2]
[367461938,1750805454986,-151.165281,0.00018082,2]
[367461940,1750805454995,-151.0,0.00018082,2]
[367461942,1750805455004,-151.0,0.00018082,2]
[367461944,1750805455013,-162.326417,0.00018082,2]
[367461946,1750805455023,-151.0,0.00018082,2]
[367461948,1750805455032,-151.0,0.00018082,2]
[367461950,1750805455041,-192.949382,0.00018082,2]
[367461952,1750805455051,-263.2,0.00018082,2]
[367461954,1750805455059,-301.293437,0.00018082,2]
[367461956,1750805455069,-301.293437,0.00018082,2]
[367461958,1750805455078,-460.0,0.00018082,2]
[367461960,1750805455087,-282.56866,0.00018082,2]
[367461962,1750805455096,-282.56866,0.00018082,2]
[367461964,1750805455105,-170.435313,0.00018082,2]
[367461966,1750805455114,-170.435313,0.00018082,2]
[367461968,1750805455123,-375.65,0.00018082,2]